bitfinex-derivatives/quotes_SOLF0:USTF0_20250509
["timestamp","ask_amount","ask_price","bid_price","bid_amount"]
[1746814936083,11.6215,172.09,171.95,1.0]
[1746814936290,5.8115,172.07,172.03,5.8124]
[1746814936485,29.76211504,172.1,171.99,28.62]
[1746814936789,1.9103,172.09,171.99,28.62]
[1746814936990,1.9103,172.09,171.99,5.8137]
[1746814937190,1.9103,172.09,171.97,1.8942]
[1746814937390,1.9103,172.09,171.96,32.2664]
[1746814937592,5.8126,172.04,171.96,32.2664]
[1746814937788,28.6,172.03,171.96,32.2664]
[1746814938184,34.4128,172.03,171.96,32.2664]
[1746814938388,28.6,172.03,171.96,32.2664]
[1746814938789,28.6,172.03,172.0,5.8134]
[1746814940392,28.6,172.03,172.01,5.8132]
[1746814940690,28.6,172.03,171.96,32.2664]
[1746814940992,28.6,172.03,172.0,5.8134]
[1746814941203,28.6,172.03,171.96,32.2664]
[1746814942092,28.6,172.03,172.02,5.8129]
[1746814942593,28.6,172.07,171.96,32.2664]
[1746814942789,28.6,172.07,171.96,389.2664]
[1746814943393,5.8125,172.04,171.96,389.2664]
[1746814943694,3.8642,172.06,171.96,389.2664]
[1746814944393,5.8123,172.04,171.99,5.814]
[1746814944896,5.8123,172.04,171.96,389.2664]
[1746814945193,5.8123,172.04,172.0,5.8136]
[1746814945491,3.8642,172.06,171.96,360.6664]
[1746814945696,28.6,172.03,171.96,357.0]
[1746814945894,30.523,172.02,171.96,357.0]
[1746814947694,5.8135,172.01,171.96,357.0]
[1746814947894,30.523,172.02,171.95,1.0]
[1746814948499,28.6,172.02,171.95,1.0]
[1746814948899,28.6,172.02,171.99,5.8137]
[1746814949287,28.6,172.02,171.95,1.0]
[1746814950200,28.6,172.02,171.98,5.8141]
[1746814950994,28.6,172.02,171.95,1.0]
[1746814951503,28.6,172.02,171.99,5.8137]
[1746814951800,28.6,172.02,171.95,1.0]
[1746814952002,28.6,172.02,171.99,5.8137]
[1746814952304,34.413,172.02,171.99,5.8137]
[1746814952907,28.6,172.02,171.95,1.0]
[1746814953705,5.8136,172.0,171.96,5.8148]
[1746814953894,28.6,172.02,171.95,1.0]
[1746814954506,5.8135,172.01,171.95,1.0]
[1746814955010,5.8135,172.01,171.98,5.8141]
[1746814955604,34.4131,172.02,171.98,5.8141]
[1746814958206,34.4131,172.02,171.99,5.8139]
[1746814958399,34.4131,172.02,171.95,1.0]
[1746814958599,34.4131,172.02,171.98,5.8141]
[1746814960706,5.8134,172.01,171.98,5.8141]
[1746814961111,28.6,172.02,171.98,5.8141]
[1746814961402,85.88311823,172.06,171.95,1.0]
[1746814961601,28.6,172.05,171.96,3.9214]
[1746814961796,110.61891823,172.05,171.97,30.4048]
[1746814962001,110.61891823,172.05,172.04,5.8123]
[1746814963502,82.01891823,172.05,172.04,5.8123]
[1746814963710,29.76211504,172.1,171.99,43.87003067]
[1746814964109,1.16211504,172.1,172.09,5.8106]
[1746814964498,82.01891823,172.12,172.05,28.6]
[1746814965210,82.01891823,172.12,172.06,5.7941]
[1746814965410,559.02,172.14,172.06,5.7941]
[1746814966303,5.8094,172.13,172.06,5.7941]
[1746814966501,5.8094,172.13,172.1,5.81]
[1746814966907,564.829,172.14,172.1,5.81]
[1746814967409,559.02,172.14,172.06,5.7941]
[1746814967806,559.02,172.14,172.11,5.8097]
[1746814968111,57.2,172.14,172.06,5.7941]
[1746814968510,57.2,172.14,172.1,5.8101]
[1746814968903,57.2,172.14,172.06,5.7941]
[1746814969104,57.2,172.14,172.09,5.8104]
[1746814969709,57.2,172.14,172.1,5.81]
[1746814970009,57.2,172.14,172.06,5.7941]
[1746814970606,63.0089,172.14,172.11,5.8097]
[1746814970806,57.2,172.14,172.06,5.7941]
[1746814971713,5.8093,172.13,172.09,5.8103]
[1746814972813,5.8096,172.12,172.09,5.8103]
[1746814973014,57.2,172.14,172.1,5.8102]
[1746814974014,5.8093,172.13,172.1,5.8102]
[1746814974613,63.009,172.14,172.1,5.8102]
[1746814974814,57.2,172.14,172.1,5.8102]
[1746814975113,57.2,172.14,172.09,5.8104]
[1746814975314,5.8094,172.13,172.06,5.7941]
[1746814975520,57.2,172.14,172.06,5.7941]
[1746814976114,63.009,172.14,172.1,5.81]
[1746814976817,5.8093,172.13,172.1,5.81]
[1746814977113,5.8093,172.13,172.09,5.8104]
[1746814977716,57.2,172.14,172.05,28.58]
[1746814977717,5.8098,172.12,172.08,5.8108]
[1746814977916,57.2,172.14,172.02,358.0]
[1746814978122,57.2,172.14,172.02,29.56]
[1746814978511,5.81,172.11,172.07,5.811]
[1746814978716,5.81,172.11,172.02,29.56]
[1746814979231,5.8097,172.12,172.08,5.8109]
[1746814981428,5.8097,172.12,172.09,5.8106]
[1746814981628,5.8093,172.13,172.02,29.56]
[1746814981933,57.2,172.14,172.02,29.56]
[1746814981934,57.2,172.14,172.08,5.8109]
[1746814982226,57.2,172.14,172.02,386.56]
[1746814983231,5.8096,172.12,172.08,5.8106]
[1746814983427,5.8096,172.12,172.02,29.56]
[1746814983729,5.8114,172.07,172.03,5.8125]
[1746814984232,57.12,172.08,172.03,5.8125]
[1746814984428,5.8113,172.07,172.03,5.8125]
[1746814984629,57.12,172.08,172.02,1.0]
[1746814984932,5.8117,172.06,172.02,1.0]
[1746814985426,5.8117,172.06,172.02,6.8127]
[1746814986226,5.812,172.05,172.02,1.0]
[1746814986532,57.12,172.08,172.02,1.0]
[1746814987833,5.8122,172.05,172.02,1.0]
[1746814989435,57.12,172.08,172.02,1.0]
[1746814990025,5.8125,172.04,172.02,1.0]
[1746814990224,28.58,172.03,172.02,1.0]
[1746814990634,34.3926,172.03,172.02,1.0]
[1746814991235,62.9526,172.03,172.02,1.0]
[1746814991737,62.9526,172.03,172.02,0.67629983]
[1746814993338,28.58,172.03,172.02,0.67629983]
[1746814995233,34.3926,172.03,172.02,0.67629983]
[1746814996241,28.58,172.03,171.95,1.0]
[1746814996832,28.58,172.03,171.98,5.814]
[1746814997642,5.8131,172.02,171.98,5.814]
[1746814998140,5.8133,172.01,171.97,5.8145]
[1746814998937,5.8131,172.02,171.98,5.8143]
[1746814999343,28.58,172.03,171.95,1.0]
[1746814999643,34.3927,172.03,171.99,5.8138]
[1746815000243,5.813,172.02,171.98,5.8142]
[1746815001042,5.813,172.02,171.99,5.8139]
[1746815003539,34.3927,172.03,172.0,5.8136]
[1746815003737,5.6503,172.09,171.95,1.0]
[1746815003942,28.56,172.08,172.01,5.8131]
[1746815004144,28.56,172.07,172.01,5.8131]
[1746815004444,28.56,172.07,171.95,1.0]
[1746815005039,28.56,172.06,171.95,1.0]
[1746815005445,5.8121,172.05,172.01,5.8131]
[1746815005742,28.56,172.06,172.01,5.8131]
[1746815005944,5.8123,172.04,172.01,5.8131]
[1746815006145,28.56,172.06,172.0,5.8135]
[1746815006444,5.8125,172.04,172.0,5.8135]
[1746815006745,28.56,172.05,172.01,5.8132]
[1746815007045,34.3722,172.05,172.01,5.8132]
[1746815008148,28.56,172.05,171.95,358.0]
[1746815008747,28.56,172.05,172.03,5.8125]
[1746815011442,34.3721,172.05,171.95,358.0]
[1746815011642,28.56,172.05,171.95,358.0]
[1746815012447,5.8126,172.04,172.01,5.8133]
[1746815012848,28.56,172.05,172.01,5.8133]
[1746815013050,28.56,172.05,172.0,5.8136]
[1746815013648,5.8128,172.03,172.0,5.8136]
[1746815013948,28.56,172.05,171.99,5.8139]
[1746815014150,28.56,172.05,171.95,358.0]
[1746815014348,28.56,172.05,171.95,1.0]
[1746815014852,5.8128,172.03,171.95,1.0]
[1746815015255,5.8128,172.03,172.0,5.8136]
[1746815015954,5.813,172.02,172.0,5.8136]
[1746815016151,5.813,172.02,171.99,5.8137]
[1746815016344,28.56,172.05,171.95,1.0]
[1746815016547,5.8133,172.01,171.95,1.0]
[1746815016950,5.8131,172.02,171.95,1.0]
[1746815017349,5.8131,172.02,172.0,5.8135]
[1746815017756,5.8133,172.01,171.95,1.0]
[1746815017952,28.56,172.05,172.0,5.8135]
[1746815018152,28.56,172.05,171.95,1.0]
[1746815018351,28.56,172.05,171.96,9.54924707]
[1746815018649,28.56,172.05,171.97,1.8781]
[1746815018850,28.56,172.05,171.98,30.4418]
[1746815019051,28.56,172.05,172.04,5.812]
[1746815021157,28.56,172.05,171.99,1.965]
[1746815021560,34.372,172.05,172.02,5.8128]
[1746815021757,28.56,172.05,171.99,1.965]
[1746815022967,28.56,172.05,172.04,5.8123]
[1746815024255,28.56,172.05,172.03,5.8125]
[1746815025455,28.56,172.05,171.99,1.965]
[1746815025958,28.56,172.05,172.03,5.8124]
[1746815026150,28.56,172.05,171.99,1.965]
[1746815026557,28.56,172.05,172.04,5.8123]
[1746815036980,57.04,172.09,172.08,5.8109]
[1746815037179,57.04,172.09,172.02,1.0]
[1746815037380,62.8506,172.09,172.02,1.0]
[1746815037580,34.3306,172.09,172.02,1.0]
[1746815037780,28.52,172.09,172.02,1.0]
[1746815038977,32.3693,172.09,172.02,1.0]
[1746815039582,5.8113,172.07,172.04,5.8122]
[1746815039776,32.3693,172.09,172.04,5.8122]
[1746815040277,32.3693,172.09,172.03,5.8124]
[1746815040481,5.8117,172.06,172.03,5.8124]
[1746815040782,32.3693,172.09,172.04,5.8122]
[1746815041284,5.8114,172.07,172.04,5.8122]
[1746815041778,5.8116,172.06,172.03,5.8125]
[1746815043779,32.3693,172.09,172.02,1.0]
[1746815043985,1.8023,172.08,172.02,1.0]
[1746815044379,5.8123,172.04,172.02,1.0]
[1746815044582,28.52,172.03,172.02,1.0]
[1746815045485,28.52,172.03,172.02,6.8129]
[1746815045785,28.52,172.03,172.02,1.0]
[1746815046685,28.52,172.05,172.02,1.0]
[1746815046882,28.52,172.05,172.03,5.8126]
[1746815047083,28.52,172.05,172.02,1.0]
[1746815047680,34.3322,172.05,172.02,6.8127]
[1746815051688,5.8126,172.03,172.02,1.0]
[1746815052188,9.54924707,172.04,171.96,5.8147]
[1746815052487,1.8884,172.02,171.95,1.0]
[1746815052686,5.8142,171.99,171.95,6.815]
[1746815052986,28.5,172.01,171.95,6.815]
[1746815052987,28.52,171.98,171.95,6.815]
[1746815053381,34.3343,171.98,171.95,1.0]
[1746815053586,28.52,171.98,171.95,1.0]
[1746815054082,5.8148,171.97,171.95,1.0]
[1746815055484,28.52,171.98,171.95,1.0]
[1746815055987,28.52,171.98,171.96,5.8148]
[1746815056983,28.52,171.98,171.97,5.8146]
[1746815057189,28.48,172.0,171.95,1.0]
[1746815057588,28.48,172.0,171.98,5.814]
[1746815057789,28.48,172.0,171.95,1.0]
[1746815058588,28.48,172.0,171.99,5.814]
[1746815058793,28.48,172.0,171.95,1.0]
[1746815059189,28.48,172.0,171.98,5.814]
[1746815059388,28.48,172.0,171.95,1.0]
[1746815060693,28.48,172.0,171.98,5.8141]
[1746815060893,28.48,172.0,171.95,1.0]
[1746815061495,28.48,172.0,171.99,5.814]
[1746815061893,28.48,172.0,171.95,1.0]
[1746815062894,28.48,172.0,171.98,5.8142]
[1746815064097,28.48,172.0,171.99,5.814]
[1746815064494,28.48,172.04,171.95,10.54924707]
[1746815064694,28.48,172.04,171.95,367.54924707]
[1746815065096,28.48,172.04,171.95,358.0]
[1746815066196,5.8135,172.01,171.98,5.8141]
[1746815066391,1.8142,172.03,171.95,358.0]
[1746815066896,5.8142,171.99,171.95,363.8152]
[1746815067095,1.8142,172.03,171.95,363.8152]
[1746815067096,28.48,171.98,171.95,358.0]
[1746815067295,28.48,171.98,171.95,1.0]
[1746815067496,34.2946,171.98,171.95,1.0]
[1746815068098,5.8149,171.97,171.95,1.0]
[1746815069798,34.2944,171.98,171.95,1.0]
[1746815070195,28.48,171.98,171.95,1.0]
[1746815070497,5.8147,171.97,171.95,1.0]
[1746815070691,28.48,171.98,171.95,6.8153]
[1746815070887,28.48,171.98,171.95,1.0]
[1746815071296,28.48,171.98,171.97,5.8146]
[1746815071498,28.48,172.02,171.95,1.0]
[1746815071698,28.48,172.02,171.95,4.8226]
[1746815072100,28.48,172.02,172.0,5.8134]
[1746815073801,28.48,172.02,172.01,5.8133]
[1746815074302,34.293,172.02,171.99,5.8138]
[1746815074499,34.293,172.02,171.95,4.8226]
[1746815074901,28.48,172.02,172.0,5.8136]
[1746815075801,28.48,172.02,172.01,5.8133]
[1746815077403,28.48,172.06,171.99,28.46]
[1746815078196,5.8121,172.05,171.99,28.46]
[1746815078396,5.8121,172.05,172.02,5.8127]
[1746815078600,28.48,172.06,171.99,28.46]
[1746815078904,5.8122,172.05,171.95,390.2826]
[1746815079201,28.48,172.06,172.01,5.8131]
[1746815079501,5.8125,172.04,172.01,5.8131]
[1746815081400,5.8125,172.04,172.0,5.8135]
[1746815081702,5.8125,172.04,171.95,390.2826]
[1746815081914,5.8127,172.03,172.0,5.8136]
[1746815082301,34.2927,172.03,172.0,5.8136]
[1746815083205,34.2927,172.03,171.99,5.8139]
[1746815083505,5.8129,172.02,171.99,5.8139]
[1746815084506,5.8129,172.02,171.98,5.814]
[1746815084706,5.8129,172.02,171.95,33.2626]
[1746815085101,5.8133,172.01,171.98,5.8141]
[1746815085296,28.48,172.03,171.95,33.2626]
[1746815085500,28.48,172.03,171.95,4.8226]
[1746815085706,28.48,172.03,171.95,1.0]
[1746815086406,5.8142,171.99,171.96,5.8149]
[1746815086608,30.4497,172.03,171.95,1.0]
[1746815086797,1.8809,172.02,171.95,1.0]
[1746815086998,5.8142,171.99,171.95,6.815]
[1746815087201,28.42,171.98,171.95,6.815]
[1746815088103,540.46924707,171.98,171.86,358.0120545]
[1746815088300,554.19,171.98,171.61,741.62636084]
[1746815088500,537.46,171.98,171.59,259.02850724]
[1746815088707,17.45,171.86,171.59,147.36850724]
[1746815088907,9.5749756,171.72,171.59,147.36850724]
[1746815089108,5.8272,171.6,171.59,147.36850724]
[1746815089307,37.9949756,171.68,171.59,147.36850724]
[1746815089707,28.42,171.68,171.59,147.36850724]
[1746815089901,15.35472015,171.69,171.59,147.36850724]
[1746815090104,73.01371823,171.6,171.57,28.42]
[1746815090407,20.40069195,171.67,171.58,28.44]
[1746815090608,20.40069195,171.67,171.59,56.86]
[1746815090807,20.40069195,171.67,171.66,5.8251]
[1746815091008,30.2901,171.8,171.66,62.0]
[1746815091209,28.42,171.8,171.66,62.0]
[1746815091411,28.42,171.8,171.65,28.44]
[1746815091710,28.42,171.8,171.68,15.35472015]
[1746815091911,28.42,171.8,171.69,28.44]
[1746815092112,28.42,171.8,171.7,28.44]
[1746815093613,28.42,171.8,171.69,28.44]
[1746815093807,28.42,171.8,171.7,28.44]
[1746815094112,28.42,171.8,171.74,5.8223]
[1746815094313,28.42,171.8,171.7,28.44]
[1746815094505,28.42,171.8,171.71,62.0]
[1746815094711,28.42,171.8,171.75,5.8221]
[1746815096014,28.42,171.8,171.76,5.8217]
[1746815096613,28.42,171.8,171.77,5.8214]
[1746815097517,28.42,171.8,171.78,5.821]
[1746815097815,28.42,171.8,171.71,28.44]
[1746815098017,28.42,171.8,171.78,62.0]
[1746815098214,28.42,171.8,171.78,67.8208]
[1746815099213,28.42,171.8,171.77,5.8214]
[1746815099417,28.42,171.8,171.71,28.44]
[1746815101218,28.42,171.8,171.78,5.8207]
[1746815101420,30.4518,171.84,171.71,400.76325145]
[1746815101717,28.46,171.84,171.83,5.8194]
[1746815101919,28.46,171.84,171.76,28.44]
[1746815102218,28.46,171.84,171.77,62.0]
[1746815102418,28.46,171.84,171.82,5.8194]
[1746815102919,28.46,171.84,171.77,62.0]
[1746815103218,5.8194,171.83,171.77,62.0]
[1746815103517,28.46,171.84,171.77,62.0]
[1746815104019,28.46,171.84,171.83,5.8194]
[1746815104214,28.46,171.84,171.77,62.0]
[1746815104616,98.32352019,171.94,171.78,28.46]
[1746815104816,86.85116874,171.94,171.8,15.32325145]
[1746815105013,81.03546874,171.94,171.87,5.8177]
[1746815105216,28.46,171.95,171.81,385.44]
[1746815105415,28.46,171.95,171.78,362.7535]
[1746815105615,1.9024,171.94,171.84,5.8187]
[1746815106021,1.9024,171.94,171.79,56.9]
[1746815106217,1.9024,171.94,171.86,5.8181]
[1746815106821,5.8168,171.91,171.84,5.8189]
[1746815107016,56.9,171.9,171.84,5.8189]
[1746815107515,56.9,171.9,171.82,5.8194]
[1746815107714,56.9,171.9,171.83,62.0]
[1746815108715,5.8177,171.88,171.83,62.0]
[1746815108920,56.9,171.9,171.83,67.8193]
[1746815109523,5.818,171.87,171.83,62.0]
[1746815111721,56.9,171.9,171.83,62.0]
[1746815111918,575.18325145,171.9,171.73,28.42]
[1746815112113,1.9343,171.89,171.73,28.42]
[1746815112417,1.9343,171.89,171.79,5.8206]
[1746815112715,1.9624,171.88,171.79,5.8206]
[1746815112916,5.8193,171.84,171.79,5.8206]
[1746815113119,28.46,171.84,171.8,5.8203]
[1746815114220,28.46,171.84,171.81,5.8199]
[1746815114525,28.46,171.84,171.73,385.42]
[1746815114924,28.46,171.84,171.81,5.8199]
[1746815115123,28.46,171.84,171.74,419.0]
[1746815115418,28.46,171.84,171.8,5.8201]
[1746815115820,34.279,171.84,171.8,5.8201]
[1746815116726,28.46,171.84,171.81,5.82]
[1746815117826,34.2791,171.84,171.81,5.82]
[1746815118125,28.46,171.84,171.81,5.82]
[1746815119626,34.2791,171.84,171.8,5.8203]
[1746815119827,34.2791,171.84,171.75,62.0]
[1746815120129,28.46,171.84,171.81,5.8198]
[1746815121027,34.2792,171.84,171.81,5.8198]
[1746815122222,1.9624,171.88,171.75,62.0]
[1746815122426,28.42,171.88,171.75,419.0]
[1746815122725,28.42,171.88,171.77,15.32325145]
[1746815122929,28.42,171.88,171.78,56.84]
[1746815123228,28.42,171.88,171.79,3.7191]
[1746815123523,1.16346713,171.9,171.81,15.32325145]
[1746815123732,28.42,171.96,171.82,1.972]
[1746815123934,34.235,171.96,171.93,5.8158]
[1746815124229,28.42,171.96,171.85,15.32325145]
[1746815124425,28.42,171.96,171.85,372.32325145]
[1746815124727,28.42,171.96,171.85,357.0]
[1746815125330,5.8162,171.93,171.85,357.0]
[1746815125533,28.42,171.96,171.86,62.0]
[1746815126023,28.42,171.96,171.87,1.9073]
[1746815126220,28.42,171.96,171.87,3.7862]
[1746815127030,5.8158,171.94,171.91,5.8166]
[1746815127325,28.42,171.96,171.87,3.7862]
[1746815127922,5.8157,171.94,171.91,5.8165]
[1746815129728,34.2353,171.96,171.92,5.8162]
[1746815129929,28.42,171.96,171.92,5.8162]
[1746815130530,5.8155,171.95,171.91,5.8165]
[1746815130930,34.2351,171.96,171.87,3.7862]
[1746815131133,28.42,171.96,171.92,5.8163]
[1746815131632,5.8153,171.95,171.92,5.8163]
[1746815131832,28.42,171.96,171.93,5.816]
[1746815132432,34.2352,171.96,171.87,3.7862]
[1746815132627,34.2352,171.96,171.88,28.4]
[1746815133732,34.2352,171.96,171.92,5.816]
[1746815134033,34.2352,171.96,171.88,28.4]
[1746815134636,34.2352,171.96,171.93,5.8159]
[1746815135628,28.42,171.96,171.95,5.8153]
[1746815135830,28.42,171.96,171.88,28.4]
[1746815136128,34.2353,171.96,171.93,5.8158]
[1746815137033,28.42,171.96,171.94,5.8155]
[1746815137234,28.42,171.96,171.88,28.4]
[1746815137737,34.2352,171.96,171.93,5.8157]
[1746815138639,34.2352,171.96,171.94,5.8156]
[1746815138835,28.42,171.96,171.94,5.8156]
[1746815140035,28.42,171.96,171.95,5.8153]
[1746815140240,28.4,172.0,171.89,9.55474731]
[1746815140444,28.4,172.0,171.89,428.55474731]
[1746815140636,28.4,172.0,171.9,13.5156]
[1746815140836,28.4,172.0,171.92,9.55474731]
[1746815141133,28.4,172.0,171.93,28.38]
[1746815141341,28.4,172.0,171.99,5.814]
[1746815142043,28.4,172.03,171.93,56.78]
[1746815142237,28.4,172.03,171.94,3.7699]
[1746815142834,34.2126,172.03,171.94,3.7699]
[1746815143847,34.2126,172.03,172.0,5.8133]
[1746815144441,28.4,172.03,171.94,1.9423]
[1746815145148,5.8138,172.0,171.97,5.8146]
[1746815145447,28.4,172.03,171.94,1.9423]
[1746815145647,5.8134,172.01,171.94,1.9423]
[1746815146049,28.4,172.03,171.94,1.9423]
[1746815146248,34.2127,172.03,171.94,1.9423]
[1746815146449,28.4,172.03,171.94,1.9423]
[1746815147447,30.2179,172.06,172.02,5.8129]
[1746815148146,30.2179,172.06,171.96,28.34]
[1746815148347,30.2179,172.06,171.96,385.34]
[1746815148747,36.0296,172.06,172.02,5.8126]
[1746815149140,28.4,172.06,171.98,28.34]
[1746815149344,28.4,172.06,171.98,385.34]
[1746815149544,28.4,172.06,171.99,1.9873]
[1746815149742,34.2118,172.06,171.99,1.9873]
[1746815149948,34.2118,172.06,172.03,5.8124]
[1746815150452,34.2118,172.06,172.04,5.8123]
[1746815150653,34.2118,172.06,171.99,1.9873]
[1746815150951,28.4,172.06,172.01,5.8132]
[1746815151446,5.8126,172.03,172.01,5.8132]
[1746815151653,28.4,172.06,172.01,5.8132]
[1746815151841,5.8121,172.05,171.99,1.9873]
[1746815152047,1.8727,172.1,171.99,1.9873]
[1746815152347,28.34,172.09,171.99,1.9873]
[1746815152645,28.34,172.09,171.99,3.942]
[1746815153152,5.8116,172.07,172.04,5.8123]
[1746815153555,5.811,172.08,172.05,5.8119]
[1746815154255,5.811,172.08,172.04,5.8121]
[1746815154858,5.811,172.08,172.05,5.8118]
[1746815155656,34.1507,172.09,172.06,5.8115]
[1746815155856,28.34,172.09,171.99,3.942]
[1746815156054,28.34,172.09,172.01,1.0]
[1746815156351,5.8112,172.08,172.01,1.0]
[1746815157252,34.1506,172.09,172.01,1.0]
[1746815157551,28.34,172.09,172.06,5.8114]
[1746815157751,34.1508,172.09,172.06,5.8114]
[1746815160156,5.811,172.08,172.05,5.8118]
[1746815160355,28.34,172.09,172.01,1.0]
[1746815160957,5.8118,172.06,172.03,5.8126]
[1746815161756,28.34,172.09,172.01,1.0]
[1746815162452,5.8118,172.06,172.03,5.8125]
[1746815162651,28.34,172.09,172.01,1.0]
[1746815163052,5.8112,172.08,172.01,1.0]
[1746815163658,5.8112,172.08,172.06,5.8116]
[1746815164360,34.1507,172.09,172.07,5.8112]
[1746815164553,28.34,172.09,172.01,1.0]
[1746815164861,5.8115,172.07,172.01,1.0]
[1746815165062,5.8115,172.07,172.04,5.812]
[1746815166260,5.8116,172.06,172.04,5.812]
[1746815166762,5.8114,172.07,172.04,5.812]
[1746815166960,28.34,172.09,172.01,1.0]
[1746815167161,37.88667128,172.09,172.01,1.0]
[1746815167362,5.8123,172.04,172.01,1.0]
[1746815167662,5.8123,172.04,172.01,6.813]
[1746815168065,5.8123,172.04,172.01,1.0]
[1746815168363,5.8126,172.03,172.01,1.0]
[1746815169056,5.8129,172.02,172.01,1.0]
[1746815172367,5.8144,171.98,171.95,5.8152]
[1746815172561,1.8479,172.01,171.92,357.0]
[1746815172759,5.6073,172.01,171.9,28.28]
[1746815173066,20.89202822,172.01,171.9,28.28]
[1746815173365,5.8159,171.94,171.9,34.0969]
[1746815173763,28.32,171.96,171.89,5.8172]
[1746815174365,5.8162,171.93,171.89,5.8172]
[1746815174567,28.32,171.96,171.89,5.8172]
[1746815174870,28.32,171.96,171.9,5.817]
[1746815175369,5.8159,171.94,171.86,28.28]
[1746815175565,5.8159,171.94,171.9,5.8168]
[1746815175765,28.32,171.96,171.86,28.28]
[1746815176268,34.1352,171.96,171.86,28.28]
[1746815176469,28.32,171.96,171.86,28.28]
[1746815176866,28.32,171.96,171.93,5.8158]
[1746815177065,28.32,171.96,171.86,28.28]
[1746815177468,5.8155,171.95,171.92,5.8161]
[1746815177667,28.32,171.96,171.86,28.28]
[1746815178674,5.8153,171.95,171.92,5.8161]
[1746815180173,28.32,171.96,171.86,357.0]
[1746815180968,5.8162,171.93,171.86,357.0]
[1746815181174,28.32,171.96,171.86,357.0]
[1746815181373,34.135,171.96,171.92,5.816]
[1746815181875,34.135,171.96,171.86,357.0]
[1746815182374,34.135,171.96,171.85,30.081]
[1746815182875,34.135,171.96,171.92,5.816]
[1746815183471,28.32,171.96,171.86,11.6367]
[1746815183878,28.32,171.96,171.94,5.8156]
[1746815186079,28.32,171.96,171.95,5.8153]
[1746815187078,28.32,171.96,171.94,5.8155]
[1746815191083,28.32,171.96,171.95,5.8153]
[1746815191981,28.28,172.0,171.9,11.37303319]
[1746815192180,28.28,172.0,171.9,368.37303319]
[1746815192379,5.8141,171.99,171.96,5.8147]
[1746815193381,34.0938,172.0,171.97,5.8146]
[1746815194684,28.28,172.0,171.9,368.37303319]
[1746815194885,28.28,172.0,171.88,28.24]
[1746815195286,5.8151,171.96,171.93,5.8157]
[1746815195481,28.28,172.0,171.88,28.24]
[1746815195785,5.8156,171.95,171.92,5.8162]
[1746815195986,28.28,171.95,171.87,9.55753319]
[1746815196285,28.28,171.95,171.91,5.8165]
[1746815197287,5.8157,171.94,171.86,385.24]
[1746815197585,28.28,171.95,171.86,28.24]
[1746815197988,5.8159,171.94,171.91,5.8165]
[1746815198289,28.28,171.95,171.91,5.8165]